bitfinex-derivatives/quotes_BNBF0:USTF0_20250302
["timestamp","ask_amount","ask_price","bid_price","bid_amount"]
[1740882341799,1.17810027,608.96,608.25,1.168]
[1740882342397,1.17810027,608.95,608.25,1.168]
[1740882343501,1.17810027,608.94,608.25,1.168]
[1740882343796,1.17810027,608.93,608.25,1.168]
[1740882344200,2.89378755,608.93,608.25,1.168]
[1740882344495,1.17810027,608.92,608.25,1.168]
[1740882345203,1.17810027,608.91,608.25,1.168]
[1740882345797,1.17810027,608.9,608.25,1.168]
[1740882346202,1.17810027,608.89,608.25,1.168]
[1740882346703,1.17810027,608.92,608.25,1.168]
[1740882347098,1.17810027,608.91,608.25,1.168]
[1740882348099,1.17810027,608.9,608.25,1.168]
[1740882348699,1.17810027,608.89,608.24,0.32881757]
[1740882349504,1.17810027,608.88,608.24,0.32881757]
[1740882350099,2.46110027,608.87,608.24,0.32881757]
[1740882350503,1.17810027,608.86,608.24,0.32881757]
[1740882351006,1.283,608.87,608.24,0.32881757]
[1740882351810,1.283,608.87,608.25,1.602]
[1740882354014,1.18428948,608.86,608.25,1.602]
[1740882354515,1.283,608.87,608.25,1.602]
[1740882356211,1.18446213,608.86,608.25,1.602]
[1740882356815,1.18446213,608.86,608.25,1.93081216]
[1740882357016,1.283,608.87,608.25,1.93081216]
[1740882357412,1.283,608.87,608.26,0.32880676]
[1740882381233,1.18299763,609.12,608.26,0.32880676]
[1740882381439,1.18299763,609.11,608.26,0.32880676]
[1740882382142,1.7154688,609.13,608.27,1.624]
[1740882382342,1.385,609.1,608.27,1.624]
[1740882384444,1.385,609.1,608.28,0.32879594]
[1740882397353,1.385,609.1,608.34,1.21363119]
[1740882398154,1.385,609.1,608.35,0.32875811]
[1740882400258,1.385,609.1,608.36,1.481]
[1740882400460,1.385,609.1,608.37,0.3287473]
[1740882410465,1.71530673,609.09,608.37,0.3287473]
[1740882411165,1.18432546,609.08,608.37,0.3287473]
[1740882411862,1.18432546,609.07,608.37,0.3287473]
[1740882412465,1.18432546,609.06,608.37,0.3287473]
[1740882413360,1.89545681,609.09,608.37,0.3287473]
[1740882413361,4.79518765,609.05,608.37,0.3287473]
[1740882413861,1.18432546,609.04,608.37,0.3287473]
[1740882414566,1.18432546,609.03,608.37,0.3287473]
[1740882415266,1.18432546,609.02,608.37,0.3287473]
[1740882416062,1.18432546,609.01,608.37,0.3287473]
[1740882416463,2.89975902,609.01,608.37,0.3287473]
[1740882417268,1.18432546,609.0,608.37,0.3287473]
[1740882418167,1.18432546,608.99,608.37,0.3287473]
[1740882419169,3.07978227,608.98,608.37,0.3287473]
[1740882420071,1.18432546,608.97,608.37,0.3287473]
[1740882420771,1.18432546,608.96,608.37,0.3287473]
[1740882421765,1.18432546,608.95,608.37,0.3287473]
[1740882422166,1.18432546,608.94,608.37,0.3287473]
[1740882422971,1.71548289,609.01,608.37,0.3287473]
[1740882423972,1.18567262,609.0,608.37,0.3287473]
[1740882424670,1.18567262,608.99,608.37,0.3287473]
[1740882424976,1.18567262,608.98,608.37,0.3287473]
[1740882425676,1.18567262,608.97,608.37,0.3287473]
[1740882426373,1.18567262,608.96,608.37,0.3287473]
[1740882426578,1.18567262,608.96,608.38,1.414]
[1740882427278,1.18567262,608.95,608.38,1.414]
[1740882428280,1.18567262,608.94,608.38,1.414]
[1740882428880,1.18567262,608.93,608.38,1.414]
[1740882429677,1.18567262,608.92,608.38,1.414]
[1740882430781,1.89545681,609.0,608.38,1.414]
[1740882430980,1.7154688,609.01,608.38,1.414]
[1740882431483,1.18548035,609.0,608.38,1.414]
[1740882432180,1.18548035,608.99,608.38,1.414]
[1740882432686,1.18548035,608.98,608.38,1.414]
[1740882433681,1.18548035,608.97,608.38,1.414]
[1740882436184,1.385,609.1,608.39,0.3287365]
[1740882436987,1.18554549,609.09,608.39,0.3287365]
[1740882437683,1.18554549,609.08,608.39,0.3287365]
[1740882438281,1.18554549,609.07,608.39,0.3287365]
[1740882438789,1.18554549,609.06,608.39,0.3287365]
[1740882439186,1.247,609.07,608.39,0.3287365]
[1740882443591,1.18549534,609.06,608.39,0.3287365]
[1740882444188,1.18549534,609.05,608.39,0.3287365]
[1740882444985,3.08095215,609.04,608.39,0.3287365]
[1740882445491,1.247,609.07,608.39,0.3287365]
[1740882445492,3.08095215,609.03,608.39,0.3287365]
[1740882446187,3.08095215,609.02,608.39,0.3287365]
[1740882446793,1.18549534,609.01,608.39,0.3287365]
[1740882447388,1.18549534,609.0,608.39,0.3287365]
[1740882447993,1.18549534,608.99,608.39,0.3287365]
[1740882448793,1.18549534,608.98,608.39,0.3287365]
[1740882449388,1.18549534,608.97,608.39,0.3287365]
[1740882449995,1.18549534,608.96,608.39,0.3287365]
[1740882450694,1.71544766,609.01,608.39,0.3287365]
[1740882451193,1.18563266,609.0,608.39,0.3287365]
[1740882451690,1.18563266,608.99,608.39,0.3287365]
[1740882452194,1.18563266,608.98,608.39,0.3287365]
[1740882452994,2.89663266,608.97,608.39,0.3287365]
[1740882453299,1.18563266,608.96,608.39,0.3287365]
[1740882454298,1.18563266,608.95,608.39,0.3287365]
[1740882455101,1.18563266,608.94,608.39,0.3287365]
[1740882455501,2.90148208,608.94,608.39,0.3287365]
[1740882455703,1.18563266,608.93,608.39,0.3287365]
[1740882455903,1.18563266,608.93,608.4,1.491]
[1740882456398,1.71584942,608.94,608.4,1.491]
[1740882456399,1.18563266,608.92,608.4,1.491]
[1740882457601,3.08237425,608.91,608.4,1.491]
[1740882458401,4.79804039,608.9,608.4,1.491]
[1740882459405,1.18563266,608.89,608.4,1.491]
[1740882459901,3.08237425,608.88,608.4,1.491]
[1740882460600,1.18563266,608.87,608.4,1.491]
[1740882461201,1.18563266,608.86,608.4,1.491]
[1740882461403,2.90141158,608.86,608.4,1.491]
[1740882462206,3.08237425,608.85,608.4,1.491]
[1740882463506,1.18563266,608.84,608.4,1.491]
[1740882464107,3.08237425,608.84,608.4,1.491]
[1740882464307,1.71584237,608.83,608.4,1.491]
[1740882464808,3.08237425,608.82,608.4,1.491]
[1740882465503,3.08237425,608.81,608.4,1.491]
[1740882466612,3.08237425,608.8,608.4,1.491]
[1740882467410,1.71591287,608.79,608.4,1.491]
[1740882467814,1.18563266,608.78,608.4,1.491]
[1740882468310,1.18563266,608.77,608.4,1.491]
[1740882468910,1.18563266,608.76,608.4,1.491]
[1740882469707,1.18563266,608.75,608.4,1.491]
[1740882470308,1.18563266,608.74,608.4,1.491]
[1740882471007,1.18563266,608.73,608.4,1.491]
[1740882471808,1.71594813,608.76,608.4,1.491]
[1740882472609,1.18405275,608.75,608.4,1.491]
[1740882473202,1.18405275,608.74,608.4,1.491]
[1740882473905,1.71594813,608.76,608.4,1.491]
[1740882474610,1.1837926,608.75,608.4,1.491]
[1740882475210,1.1837926,608.74,608.4,1.491]
[1740882475911,1.71594813,608.76,608.4,1.491]
[1740882476110,1.43973366,608.95,608.4,1.491]
[1740882476310,1.71595518,608.76,608.4,1.491]
[1740882476506,3.08048354,608.94,608.4,1.491]
[1740882476810,1.71594108,608.76,608.4,1.491]
[1740882477010,4.5202172,608.93,608.4,1.491]
[1740882477210,1.43973366,608.92,608.4,1.491]
[1740882477410,1.71594108,608.76,608.4,1.491]
[1740882477606,3.08048354,608.91,608.4,1.491]
[1740882477810,1.71594108,608.76,608.4,1.491]
[1740882478005,3.08048354,608.91,608.4,1.491]
[1740882478213,1.18374195,608.75,608.4,1.491]
[1740882478912,1.71594813,608.8,608.4,1.491]
[1740882479511,1.18374195,608.79,608.4,1.491]
[1740882480012,1.18374195,608.78,608.4,1.491]
[1740882480909,1.18374195,608.79,608.4,1.491]
[1740882481313,1.71594813,608.8,608.4,1.491]
[1740882482112,1.89674159,608.94,608.4,1.491]
[1740882482315,1.89674159,608.93,608.4,1.491]
[1740882482516,1.71581417,608.83,608.4,1.491]
[1740882482716,1.89674159,608.93,608.4,1.491]
[1740882482917,3.08024593,608.92,608.4,1.491]
[1740882484020,1.18350434,608.96,608.4,1.491]
[1740882485621,1.711,608.97,608.4,1.491]
[1740882490925,1.18389005,608.96,608.4,1.491]
[1740882491225,1.18389005,608.95,608.4,1.491]
[1740882491927,1.18389005,608.94,608.4,1.491]
[1740882492726,1.18389005,608.93,608.4,1.491]
[1740882493323,1.385,608.95,608.4,1.491]
[1740882493725,1.18381683,608.94,608.4,1.491]
[1740882494925,1.18381683,608.93,608.4,1.491]
[1740882495525,1.385,608.95,608.4,1.491]
[1740882503136,1.18454131,608.94,608.4,1.491]
[1740882503631,1.385,608.95,608.4,1.491]
[1740882504836,1.18456981,608.94,608.4,1.491]
[1740882505741,1.385,608.95,608.4,1.491]
[1740882507640,1.18456633,608.94,608.4,1.491]
[1740882508139,1.385,608.95,608.4,1.491]
[1740882509037,1.18459037,608.94,608.4,1.491]
[1740882509636,1.385,608.95,608.4,1.491]
[1740882513946,1.18463263,608.94,608.4,1.491]
[1740882514950,1.385,608.95,608.4,1.491]
[1740882514951,1.18463263,608.93,608.4,1.491]
[1740882515751,1.18463263,608.92,608.4,1.491]
[1740882516354,1.18463263,608.91,608.4,1.491]
[1740882517247,1.18463263,608.9,608.4,1.491]
[1740882518055,1.18463263,608.89,608.4,1.491]
[1740882518652,3.61081897,608.94,608.4,1.491]
[1740882519458,1.18459356,608.93,608.4,1.491]
[1740882520254,1.18459356,608.92,608.4,1.491]
[1740882520455,1.18459356,608.91,608.4,1.491]
[1740882521351,1.18459356,608.9,608.4,1.491]
[1740882522457,1.18459356,608.89,608.4,1.491]
[1740882523158,1.18459356,608.88,608.4,1.491]
[1740882523758,3.61105331,608.94,608.4,1.491]
[1740882524053,1.89567324,608.93,608.4,1.491]
[1740882524258,3.08046902,608.93,608.4,1.491]
[1740882524756,1.18479578,608.92,608.4,1.491]
[1740882525555,1.18479578,608.91,608.4,1.491]
[1740882526460,1.18479578,608.9,608.4,1.491]
[1740882527160,1.18479578,608.89,608.4,1.491]
[1740882527761,1.18479578,608.88,608.4,1.491]
[1740882528160,1.7155886,608.91,608.4,1.491]
[1740882529260,1.18543453,608.9,608.4,1.491]
[1740882529956,1.18543453,608.89,608.4,1.491]
[1740882530364,1.18543453,608.88,608.4,1.491]
[1740882531163,1.385,608.95,608.4,1.491]
[1740882531861,1.18602658,608.94,608.4,1.491]
[1740882532262,1.18602658,608.93,608.4,1.491]
[1740882532965,1.18602658,608.92,608.4,1.491]
[1740882533666,1.18602658,608.91,608.4,1.491]
[1740882534064,1.18602658,608.9,608.4,1.491]
[1740882535065,1.18602658,608.89,608.4,1.491]
[1740882535966,1.18602658,608.88,608.4,1.491]
[1740882536766,1.18602658,608.87,608.4,1.491]
[1740882537160,1.18602658,608.86,608.4,1.491]
[1740882537659,1.18602658,608.85,608.4,1.491]
[1740882538465,1.18602658,608.84,608.4,1.491]
[1740882539167,1.63124768,609.27,608.4,1.491]
[1740882539168,1.18602658,608.83,608.4,1.491]
[1740882540167,2.96802658,608.83,608.4,1.491]
[1740882540364,1.18602658,608.82,608.4,1.491]
[1740882541372,1.18602658,608.81,608.4,1.491]
[1740882541969,1.18602658,608.8,608.4,1.491]
[1740882543169,1.18602658,608.79,608.4,1.491]
[1740882543970,1.782,608.83,608.4,1.491]
[1740882544874,1.18863218,608.82,608.4,1.491]
[1740882545776,1.18863218,608.81,608.4,1.491]
[1740882546678,1.782,608.83,608.4,1.491]
[1740882547179,1.18887973,608.82,608.4,1.491]
[1740882547871,1.18887973,608.81,608.4,1.491]
[1740882548477,1.782,608.83,608.4,1.491]
[1740882549379,1.19052436,608.82,608.4,1.491]
[1740882549781,1.19052436,608.81,608.4,1.491]
[1740882550419,1.782,608.83,608.4,1.491]
[1740882551212,1.19157739,608.82,608.4,1.491]
[1740882551712,1.19171068,608.81,608.4,1.491]
[1740882552304,1.782,608.83,608.4,1.491]
[1740882553496,1.1916373,608.82,608.4,1.491]
[1740882553984,1.19163763,608.81,608.4,1.491]
[1740882554590,1.19163763,608.8,608.4,1.491]
[1740882555487,1.19163763,608.79,608.4,1.491]
[1740882556291,1.782,608.83,608.4,1.491]
[1740882556292,1.19163763,608.78,608.4,1.491]
[1740882557386,4.81370695,608.77,608.4,1.491]
[1740882558382,3.09782228,608.76,608.4,1.491]
[1740882560487,4.81372105,608.76,608.4,1.491]
[1740882561690,3.09782228,608.75,608.4,1.491]
[1740882562690,3.09782228,608.74,608.4,1.491]
[1740882563491,4.33582228,608.73,608.4,1.491]
[1740882563890,1.19163763,608.72,608.4,1.491]
[1740882564887,1.19163763,608.71,608.4,1.491]
[1740882566193,1.19163763,608.7,608.4,1.491]
[1740882567090,1.19163763,608.69,608.4,1.491]
[1740882567993,1.71600454,608.71,608.4,1.491]
[1740882569193,1.238,608.73,608.4,1.491]
[1740882569594,1.18889468,608.72,608.4,1.491]
[1740882570190,1.18889468,608.71,608.4,1.491]
[1740882570895,1.18889468,608.7,608.4,1.491]
[1740882571289,1.18889468,608.69,608.4,1.491]
[1740882572296,1.238,608.73,608.4,1.491]
[1740882572995,1.18869211,608.72,608.4,1.491]
[1740882573799,1.18869211,608.71,608.4,1.491]
[1740882574304,1.18869211,608.7,608.4,1.491]
[1740882575003,1.18869211,608.69,608.4,1.491]
[1740882575805,1.18869211,608.68,608.4,1.491]
[1740882576801,1.238,608.73,608.4,1.491]
[1740882577506,1.18837358,608.72,608.4,1.491]
[1740882578308,1.18837358,608.71,608.4,1.491]
[1740882579110,1.18837358,608.7,608.4,1.491]
[1740882579802,1.18837358,608.69,608.4,1.491]
[1740882580604,1.18837358,608.68,608.4,1.491]
[1740882581605,1.18837358,608.67,608.4,1.491]
[1740882582208,1.18837358,608.66,608.4,1.491]
[1740882582906,1.18837358,608.65,608.4,1.491]
[1740882583309,1.18837358,608.65,607.9,2.51275465]
[1740882583512,1.18837358,608.65,607.91,0.32899606]
[1740882583717,1.18837358,608.64,607.91,0.32899606]
[1740882584312,1.71654061,608.63,607.91,0.32899606]
[1740882584713,2.90491419,608.63,607.91,0.32899606]
[1740882585107,1.18837358,608.62,607.91,0.32899606]
[1740882586210,1.18837358,608.61,607.91,0.32899606]
[1740882586415,1.18837358,608.61,607.91,2.11899606]
[1740882587316,1.18837358,608.6,607.91,2.11899606]
[1740882587916,1.18837358,608.59,607.91,2.11899606]
[1740882588916,1.18837358,608.58,607.91,2.11899606]
[1740882589617,1.18837358,608.57,607.91,2.11899606]
[1740882590214,1.18837358,608.56,607.91,2.11899606]
[1740882590810,1.18837358,608.55,607.91,2.11899606]
[1740882591816,1.71661823,608.59,607.91,2.11899606]
[1740882596124,1.18837358,608.67,607.91,2.11899606]
[1740882596326,1.71660412,608.59,607.91,2.11899606]
[1740882597125,1.18837358,608.66,607.91,2.11899606]
[1740882597625,1.18837358,608.65,607.91,2.11899606]
[1740882598325,1.71647711,608.68,607.91,2.11899606]
[1740882599026,1.18837358,608.7,607.91,2.11899606]
[1740882599425,1.71641362,608.68,607.91,2.11899606]
[1740882602125,1.89716955,608.72,607.91,2.11899606]
[1740882602328,1.238,608.73,607.91,2.11899606]
[1740882602519,1.71641362,608.68,607.91,2.11899606]
[1740882605828,1.219,608.67,607.91,2.11899606]
[1740882611235,1.219,608.67,607.95,1.21363119]
[1740882611436,1.219,608.67,607.96,0.32896901]
[1740882613634,1.219,608.67,608.01,1.21363119]
[1740882613831,1.219,608.67,608.02,0.32893654]
[1740882614732,1.219,608.67,608.02,1.92593654]
[1740882633750,1.18777306,608.66,608.02,1.92593654]
[1740882634543,3.08667341,608.65,608.02,1.92593654]
[1740882634746,1.64393111,608.64,608.02,1.92593654]
[1740882634947,2.83170417,608.64,608.02,1.92593654]
[1740882635148,1.18777306,608.64,608.02,1.92593654]
[1740882635751,1.18777306,608.63,608.02,1.92593654]
[1740882636847,1.18777306,608.62,608.02,1.92593654]
[1740882637750,1.18777306,608.61,608.02,1.92593654]
[1740882637950,1.18777306,608.6,608.02,1.92593654]
[1740882638357,2.90432778,608.6,608.02,1.92593654]
[1740882638855,1.18777306,608.59,608.02,1.92593654]
[1740882639455,1.18777306,608.58,608.02,1.92593654]
[1740882639859,1.18777306,608.57,608.02,1.92593654]
[1740882640857,1.71655472,608.6,608.02,1.92593654]
[1740882640858,1.18777306,608.59,608.02,1.92593654]
[1740882641560,1.71655472,608.6,608.02,1.92593654]
[1740882642662,1.18777306,608.66,608.02,1.92593654]
[1740882643158,1.219,608.67,608.02,1.92593654]
[1740882645664,1.18777306,608.66,608.02,1.92593654]
[1740882645960,2.83168547,608.66,608.02,1.92593654]
[1740882646365,1.18777306,608.65,608.02,1.92593654]
[1740882647160,1.18777306,608.64,608.02,1.92593654]
[1740882648064,1.18777306,608.66,608.02,1.92593654]
[1740882648859,1.415,608.65,608.02,1.92593654]
[1740882650467,1.18777306,608.64,608.02,1.92593654]
[1740882651468,1.415,608.65,608.02,1.92593654]
[1740882661582,1.18589705,608.64,608.02,1.92593654]
[1740882662179,1.18589705,608.63,608.02,1.92593654]
[1740882662582,1.18589705,608.64,608.02,1.92593654]
[1740882662982,1.415,608.65,608.02,1.92593654]
[1740882664285,1.18592492,608.64,608.02,1.92593654]
[1740882665180,1.18592492,608.63,608.02,1.92593654]
[1740882665681,1.18592492,608.62,608.02,1.92593654]
[1740882666487,1.18592492,608.61,608.02,1.92593654]
[1740882667083,1.18592492,608.6,608.02,1.92593654]
[1740882667782,1.18592492,608.59,608.02,1.92593654]
[1740882668483,1.415,608.65,608.02,1.92593654]
[1740882668689,1.71645595,608.64,608.02,1.92593654]
[1740882668887,2.90240285,608.64,608.02,1.92593654]
[1740882669788,1.1859469,608.63,608.02,1.92593654]
[1740882670587,2.62854809,608.63,608.02,1.92593654]
[1740882670788,2.83007818,608.62,608.02,1.92593654]
[1740882671088,1.64413128,608.61,608.02,1.92593654]
[1740882671389,3.08350415,608.6,608.02,1.92593654]
[1740882671588,1.64416144,608.59,608.02,1.92593654]
[1740882672089,1.1859469,608.58,608.02,1.92593654]
[1740882672284,2.83010834,608.58,608.02,1.92593654]
[1740882672485,2.83010834,608.57,608.02,1.92593654]
[1740882672687,1.64416144,608.56,608.02,1.92593654]
[1740882673284,1.1859469,608.55,608.02,1.92593654]
[1740882673490,2.83010834,608.55,608.02,1.92593654]
[1740882673691,1.1859469,608.55,608.02,1.92593654]
[1740882674091,1.1859469,608.54,608.02,1.92593654]
[1740882674488,2.90264275,608.54,608.02,1.92593654]
[1740882674885,1.1859469,608.53,608.02,1.92593654]
[1740882675984,1.1859469,608.52,608.02,1.92593654]
[1740882677092,1.1859469,608.63,608.02,1.92593654]
[1740882677896,2.90250162,608.62,608.02,1.92593654]
[1740882678492,1.1859469,608.61,608.02,1.92593654]
[1740882679288,1.1859469,608.6,608.02,1.92593654]
[1740882680093,1.1859469,608.59,608.02,1.92593654]
[1740882680490,2.90254396,608.59,608.02,1.92593654]
[1740882680995,1.1859469,608.58,608.02,1.92593654]
[1740882681995,2.83012109,608.58,608.02,1.92593654]
[1740882682797,1.1859469,608.58,608.02,1.92593654]
[1740882683393,1.71667468,608.57,608.02,1.92593654]
[1740882684498,3.36087461,608.57,608.02,1.92593654]
[1740882684895,3.08350415,608.56,608.02,1.92593654]
[1740882685095,1.64419993,608.55,608.02,1.92593654]
[1740882685796,3.08350415,608.54,608.02,1.92593654]
[1740882685992,1.64419993,608.53,608.02,1.92593654]
[1740882686193,4.72770408,608.53,608.02,1.92593654]
[1740882686397,3.3609099,608.52,608.02,1.92593654]
[1740882686994,3.08350415,608.51,608.02,1.92593654]
[1740882687294,1.64419993,608.5,608.02,1.92593654]
[1740882687700,1.1859469,608.49,608.02,1.92593654]
[1740882687895,2.83014683,608.49,608.02,1.92593654]
[1740882688295,1.1859469,608.48,608.02,1.92593654]
[1740882689198,1.1859469,608.47,608.02,1.92593654]
[1740882689894,1.1859469,608.46,608.02,1.92593654]
[1740882690297,1.71670997,608.52,608.02,1.92593654]
[1740882690894,1.18750431,608.51,608.02,1.92593654]
[1740882691903,1.18750431,608.5,608.02,1.92593654]
[1740882692802,1.18750431,608.49,608.02,1.92593654]
[1740882693595,1.89755725,608.57,608.02,1.92593654]
[1740882693596,1.415,608.65,608.02,1.92593654]
[1740882694496,1.18731572,608.64,608.02,1.92593654]
[1740882694698,2.83125862,608.64,608.02,1.92593654]
[1740882694899,1.6439429,608.63,608.02,1.92593654]
[1740882695097,2.83125862,608.64,608.02,1.92593654]
[1740882695502,3.08487297,608.62,608.02,1.92593654]
[1740882695698,1.6439429,608.61,608.02,1.92593654]
[1740882695898,1.18731572,608.6,608.02,1.92593654]
[1740882696099,2.83125862,608.6,608.02,1.92593654]
[1740882696306,1.6439429,608.59,608.02,1.92593654]
[1740882696506,1.18731572,608.59,608.02,1.92593654]
[1740882697200,1.18731572,608.58,608.02,1.92593654]
[1740882697806,4.72881587,608.57,608.02,1.92593654]
[1740882698000,1.6439429,608.56,608.02,1.92593654]
[1740882698204,1.6439429,608.55,608.02,1.92593654]
[1740882698405,1.7166888,608.55,608.02,1.92593654]
[1740882698601,3.08487297,608.54,608.02,1.92593654]
[1740882698902,4.72881587,608.54,608.02,1.92593654]
[1740882699201,4.72881587,608.53,608.02,1.92593654]
[1740882699400,1.6439429,608.52,608.02,1.92593654]
[1740882700106,4.38587297,608.51,608.02,1.92593654]
[1740882700306,1.6439429,608.5,608.02,1.92593654]
[1740882700509,4.72881587,608.5,608.02,1.92593654]
[1740882700811,3.08487297,608.5,608.02,1.92593654]
[1740882701006,3.08487297,608.49,608.02,1.92593654]
[1740882701707,4.80161117,608.49,608.02,1.92593654]
[1740882701903,1.18731572,608.48,608.02,1.92593654]
[1740882702508,1.18731572,608.47,608.02,1.92593654]
[1740882703302,1.18731572,608.46,608.02,1.92593654]
[1740882704208,1.18731572,608.45,608.02,1.92593654]
[1740882705005,1.7167382,608.49,608.02,1.92593654]
[1740882705006,1.18731572,608.44,608.02,1.92593654]
[1740882705808,1.7167382,608.49,608.02,1.92593654]
[1740882706908,1.18728322,608.48,608.02,1.92593654]
[1740882707504,1.18728322,608.47,608.02,1.92593654]
[1740882708305,1.18728322,608.46,608.02,1.92593654]
[1740882709415,1.18728322,608.45,608.02,1.92593654]
[1740882710213,1.18728322,608.44,608.02,1.92593654]
[1740882711014,1.18728322,608.44,608.02,1.597]
[1740882711211,1.71676643,608.49,608.02,1.597]
[1740882711212,2.83245219,608.43,608.02,1.597]
[1740882711514,3.08873813,608.42,608.02,1.597]
[1740882711708,1.63342531,608.4,608.02,1.597]
[1740882711911,0.98005348,608.35,608.02,1.597]
[1740882712109,1.63342531,608.17,608.02,1.597]
[1740882712312,1.63342531,608.15,607.33,1.21363119]
[1740882712508,1.63342531,608.11,607.33,1.21363119]
[1740882712713,1.63342531,608.09,607.33,1.21363119]
[1740882713014,1.63297189,608.02,607.33,1.21363119]
[1740882713214,1.64545991,608.01,607.33,1.21363119]
[1740882713410,1.64545991,608.0,607.33,1.21363119]
[1740882713616,1.64545991,607.99,607.33,1.21363119]
[1740882713809,1.64545991,607.98,607.33,1.21363119]
[1740882714014,1.64545991,607.97,607.33,1.21363119]
[1740882714214,1.64545991,607.96,606.74,1.21363119]
[1740882714416,1.64545991,607.95,606.76,0.32961961]
[1740882714616,1.64545991,607.94,606.76,0.32961961]
[1740882714918,3.2784318,607.93,606.76,0.32961961]
[1740882715213,3.08790812,607.92,606.76,0.32961961]
[1740882715518,1.64545991,607.91,606.77,1.479]
[1740882715717,1.64545991,607.9,606.78,0.32960875]
[1740882716015,1.64545991,607.89,606.78,0.32960875]
[1740882716215,1.64545991,607.88,606.78,0.32960875]
[1740882716413,1.64545991,607.87,606.78,0.32960875]
[1740882716618,1.64545991,607.86,606.78,0.32960875]
[1740882716818,1.64545991,607.85,606.78,0.32960875]
[1740882717112,1.64545991,607.84,606.78,0.32960875]
[1740882717313,1.64545991,607.83,606.78,0.32960875]
[1740882717518,1.64545991,607.82,606.78,0.32960875]
[1740882717717,1.64302366,607.81,606.78,0.32960875]
[1740882717914,1.64302366,607.8,606.78,0.32960875]
[1740882718315,1.64302366,607.81,606.78,0.32960875]
[1740882718515,3.08158995,607.79,606.78,0.32960875]
[1740882718713,4.27186152,607.78,606.78,0.32960875]
[1740882719122,3.08158995,607.77,606.78,0.32960875]
[1740882719321,4.27186152,607.76,606.78,0.32960875]
[1740882719624,5.99119371,607.76,606.78,0.32960875]
[1740882719823,3.08158995,607.75,606.78,0.32960875]
[1740882720916,1.71933219,607.76,606.78,0.32960875]
[1740882722122,4.26508813,607.92,606.78,0.32960875]
[1740882722525,1.71931096,607.75,606.78,0.32960875]
[1740882722820,3.08158995,607.91,606.78,0.32960875]
[1740882723120,1.7192331,607.74,606.78,0.32960875]
[1740882723323,1.64041851,607.9,606.78,0.32960875]
[1740882723527,3.35953837,607.9,606.78,0.32960875]
[1740882723831,3.08158995,607.89,606.78,0.32960875]
[1740882724021,4.26062765,607.88,606.78,0.32960875]
[1740882724825,3.08158995,607.87,606.78,0.32960875]
[1740882725026,1.64041851,607.86,606.78,0.32960875]
[1740882725727,1.18728322,607.85,606.78,0.32960875]
[1740882726524,1.18728322,607.84,606.78,0.32960875]
[1740882726926,1.18728322,607.83,606.78,0.32960875]
[1740882727325,5.43749657,607.83,606.78,0.32960875]
[1740882727532,5.43749657,607.82,606.78,0.32960875]
[1740882727729,1.63469744,607.81,606.78,0.32960875]
[1740882727925,2.82198066,607.82,606.78,0.32960875]
[1740882728631,1.18728322,607.81,606.78,0.32960875]
[1740882728830,2.82198066,607.81,606.78,0.32960875]
[1740882729031,1.63469744,607.8,606.78,0.32960875]
[1740882729331,1.18728322,607.8,606.78,0.32960875]
[1740882730034,1.18728322,607.79,606.78,0.32960875]
[1740882730537,1.18728322,607.78,606.78,0.32960875]
[1740882731133,1.18728322,607.77,606.78,0.32960875]
[1740882731928,1.18728322,607.76,606.78,0.32960875]
[1740882732630,1.89430673,607.89,606.78,0.32960875]
[1740882732631,1.18728322,607.75,606.78,0.32960875]
[1740882733834,2.90650216,607.75,606.78,0.32960875]
[1740882734335,1.71921894,607.75,606.78,0.32960875]
[1740882735132,1.18728322,607.74,606.78,0.32960875]
[1740882735731,1.18728322,607.73,606.78,0.32960875]
[1740882736132,1.18728322,607.72,606.78,0.32960875]
[1740882736542,1.63144278,607.71,606.78,0.32960875]
[1740882736735,4.71303273,607.7,606.78,0.32960875]
[1740882736934,4.24064288,607.69,606.78,0.32960875]
[1740882737137,1.63144278,607.68,606.78,0.32960875]
[1740882737332,1.63144278,607.67,606.78,0.32960875]
[1740882737539,1.63144278,607.66,606.78,0.32960875]
[1740882737734,7.41134066,607.68,606.78,0.32960875]
[1740882737735,1.63144278,607.65,606.78,0.32960875]
[1740882737942,1.63144278,607.64,606.78,0.32960875]
[1740882738242,1.63144278,607.63,606.78,0.32960875]
[1740882738442,1.63144278,607.62,606.78,0.32960875]
[1740882738635,1.63144278,607.61,606.78,2.13060875]